Cogmind - Beta 10.2 @@@ ROGUE MODE // 2021.10.23 @ 16:34:18 Player: Burgers_Lettuce Result: Destroyed by G-47 Trooper with Particle Gun Performance ------------- Evolutions (0) 0 Regions Visited (2) 400 Robots Destroyed (9) 45 Value Destroyed (280) 280 Prototype IDs (0) 0 Alien Tech Used (0) 0 Bonus (0) 0 TOTAL SCORE: 725 Bonus ------- None Cogmind --------- Core Integrity 0/250 Matter 272/300 Energy 100/100 System Corruption 0% Temperature Cool (30) Movement Treading (160) Location -10/Mines Parts ------- > --- POWER (1) -------- (None) > --- PROPULSION (2) --- Light Treads Wheel > --- UTILITY (2) ------ Small Storage Unit Targeting Computer > --- WEAPON (2) ------- Bore Cannon Flail > --- INVENTORY (6) ---- Ion Engine Flexi-carbon Leg Flexi-carbon Leg Compact Wheel High-capacity Battery (400) Peak State ------------ > --- POWER ------------ Light Ion Engine > --- PROPULSION ------- Flexi-carbon Leg Flexi-carbon Leg > --- UTILITY ---------- Small Storage Unit High-capacity Battery > --- WEAPON ----------- EM Pulse Gun Small Laser > --- INVENTORY -------- Ion Engine Light Treads Compact Wheel Flail [Rating: 15] Favorites ----------- Power Ion Engine Engine Ion Engine Power Core Light Nuclear Core Propulsion Wheel Treads Light Treads Leg Flexi-carbon Leg Wheel Wheel Utility Small Storage Unit Storage Small Storage Unit Processor Targeting Computer Weapon EM Pulse Gun Energy Gun EM Pulse Gun Ballistic Gun Assault Rifle Ballistic Cannon Bore Cannon Impact Weapon Flail Build | -11 -10 -10 ------- Run | Scr Mat Min Slots Evolved . | . . . Power . | . . . Propulsion . | . . . Utility . | . . . Weapon . | . . . Parts Attached 22 | 6 2 14 Power 3 | 1 . 2 Engine 2 | 1 . 1 Core 1 | . . 1 Reactor . | . . . Propulsion 7 | 2 . 5 Treads 2 | 1 . 1 Leg 2 | . . 2 Wheel 3 | 1 . 2 Hover . | . . . Flight . | . . . Utility 3 | 1 1 1 Device . | . . . Storage 2 | 1 1 . Processor 1 | . . 1 Hackware . | . . . Protection . | . . . Artifact . | . . . Weapon 9 | 2 1 6 Energy Gun 3 | 1 . 2 Energy Cannon . | . . . Ballistic Gun 4 | 1 1 2 Ballistic Cannon 1 | . . 1 Launcher . | . . . Special Weapon . | . . . Impact Weapon 1 | . . 1 Slashing Weapon . | . . . Piercing Weapon . | . . . Special Melee Weapon . | . . . Unidentified Prototypes . | . . . Parts Lost 8 | . . 8 Power 2 | . . 2 Propulsion 2 | . . 2 Utility . | . . . Weapon 4 | . . 4 Highest Loss Streak 8 | . . 8 Average Slot Usage (%) 90 | . 94 88 Engine 6 | . 14 3 Core 4 | . . 6 Treads 12 | . 14 11 Leg 2 | . . 2 Wheel 12 | . 14 11 Storage 24 | . 22 24 Processor 2 | . . 3 Energy Gun 9 | . 14 7 Ballistic Gun 10 | . 14 8 Ballistic Cannon 1 | . . 2 Impact Weapon 3 | . . 4 Naked Turns . | . . . Heaviest Build 18 | 13 18 18 Greatest Support 40 | 10 10 40 Greatest Overweight (x) 1 | 1 1 1 Average Overweight (x) . | . 1 . Largest Inventory Capacity 6 | 6 6 6 Average Capacity 5 | 5 6 6 Most Carried 6 | 3 5 6 Average Carried 4 | 1 4 5 Final Capacity 6 | 6 6 6 Final Carried 5 | 3 5 5 Class Distribution -------------------- 100% | Mutant Dominant Class ---------------- Mutant | -10/Materials Mutant | -10/Mines Resources | -11 -10 -10 ----------- Run | Scr Mat Min Matter Collected 509 | 218 86 205 Remotely . | . . . Salvage Created 320 | . 165 155 Parts 13 | . 6 7 Haulers Intercepted . | . . . Recyclers Shooed . | . . . Parts Field Recycled . | . . . Retrieved Matter . | . . . Parts Self-Destructed . | . . . Prevented . | . . . Kills | -11 -10 -10 ------- Run | Scr Mat Min Combat Hostiles Destroyed 12 | . 4 8 Melee 2 | . . 2 Guns 10 | . 4 6 Classes Destroyed 3 | . 1 2 Swarmer 3 | . . 3 Grunt 6 | . 4 2 Assembled 3 | . . 3 Best Kill Streak 3 | . 2 3 Combat Bots Only 3 | . 2 3 Max Kills in Single Turn 2 | . 1 2 Gunslinging 1 | . . 1 Exploded . | . . . Melee 1 | . . 1 Uniques/NPCs Destroyed . | . . . Combat | -11 -10 -10 -------- Run | Scr Mat Min Damage Taken 1123 | . 75 1048 Core 263 | . 10 253 Absorbed by Shields . | . . . Core Remaining (%) 100 | 100 . . Volleys Fired 43 | . 7 36 Largest 2 | . 2 2 Hottest 63 | . 63 63 Shots Fired 72 | . 14 58 Gun 68 | . 14 54 Cannon 4 | . . 4 Launcher . | . . . Special . | . . . Kinetic 40 | . 7 33 Thermal 10 | . . 10 Explosive . | . . . Electromagnetic 22 | . 7 15 Robot Hit Streak 13 | . 13 5 Robot Miss Streak 8 | . 2 8 Penetration Max . | . . . Secondary Targets 4 | . 1 3 Max Gunslinging Chain 1 | . 1 1 Shots Hit Robots 49 | . 12 37 Core Hits 23 | . 9 14 Critical Hits . | . . . Critical Kills . | . . . Critical Parts Destroyed . | . . . Melee Attacks 3 | . . 3 Impact 3 | . . 3 Slashing . | . . . Piercing . | . . . Sneak Attacks . | . . . Combat Hostiles . | . . . Follow-up Attacks . | . . . Damage Inflicted 670 | . 207 463 Guns 551 | . 173 378 Cannons 35 | . . 35 Explosions 32 | . 32 . Melee 50 | . . 50 Ramming 2 | . 2 . Kinetic 370 | . 105 265 Thermal 109 | . 32 77 Explosive . | . . . Electromagnetic 139 | . 68 71 Impact 50 | . . 50 Slashing . | . . . Piercing . | . . . Highest Corruption . | . . . Average Corruption . | . . . Corruption Purged . | . . . Overload Shots . | . . . Overflow Damage . | . . . Projectiles . | . . . Explosions . | . . . Melee . | . . . Knockbacks 1 | . . 1 Impact . | . . . Kinetic 1 | . . 1 Secondary . | . . . Self-Inflicted Damage 5 | . 5 . Shots 1 | . 1 . Rammed 1 | . 1 . Targets Rammed 1 | . 1 . Kicked . | . . . Crushed . | . . . Highest Temperature 96 | . 48 96 Average Temperature 30 | . 21 33 Received Heat Transfer 281 | . 39 242 Siege Activations . | . . . Robots Corrupted . | . . . Combat Hostiles . | . . . Parts Fried . | . . . Impact Corruptions . | . . . Robots Melted . | . . . Combat Hostiles . | . . . Parts Melted . | . . . Heat Transferred 225 | . 50 175 Parts Sabotaged . | . . . Parts Stolen . | . . . Parts Stripped . | . . . Power Chain Reactions 1 | . 1 . Missiles Intercepted . | . . . Alert | -11 -10 -10 ------- Run | Scr Mat Min Peak Influence 212 | . 161 212 Initial 62 | . . 62 Average 142 | . 79 186 Maximum Alert Level 1 | . . 1 Low Security (%) 72 | 100 100 58 Level 1 27 | . . 41 Level 2 . | . . . Level 3 . | . . . Level 4 . | . . . Level 5 . | . . . High Security . | . . . Max Security . | . . . Squads Dispatched 1 | . 1 . Investigation . | . . . Extermination . | . . . Reinforcement 1 | . 1 . Assault . | . . . Garrison . | . . . Intercept . | . . . Construction Impeded . | . . . Haulers Reinforced . | . . . Stealth | -11 -10 -10 --------- Run | Scr Mat Min Distress Signals 1 | . . 1 Communications Jammed . | . . . Distress Signals . | . . . Times Spotted 25 | . 6 19 Peak Tracking Total 8 | . 2 8 Tactical Retreats 4 | . 1 3 Traps | -11 -10 -10 ------- Run | Scr Mat Min Traps Triggered . | . . . Indirectly . | . . . Trap Hack Attempts . | . . . Triggered . | . . . Disarmed . | . . . Reprogrammed . | . . . Reused . | . . . Traps Extracted . | . . . Installed . | . . . Triggered . | . . . Machines | -11 -10 -10 ---------- Run | Scr Mat Min Machines Disabled 2 | . 1 1 Max in Single Turn 1 | . 1 1 Machines Sabotaged . | . . . Garrisons Compromised . | . . . Overloaded Fab Kills . | . . . Fab Network Shutdowns . | . . . Hacking | -11 -10 -10 --------- Run | Scr Mat Min Machines Accessed 3 | . 3 . Terminals 2 | . 2 . Fabricators . | . . . Repair Stations . | . . . Recycling Units 1 | . 1 . Scanalyzers . | . . . Garrison Access . | . . . Total Hacks 8 | . 8 . Successful 4 | . 4 . Failed 4 | . 4 . Catastrophic 1 | . 1 . Database Lockouts . | . . . Manual 7 | . 7 . Terminals 7 | . 7 . Fabricators . | . . . Repair Stations . | . . . Recycling Units 1 | . 1 . Scanalyzers . | . . . Garrison Access . | . . . Terminal Hacks 1 | . 1 . Recall Investigation 1 | . 1 . Fabricator Hacks . | . . . Repair Station Hacks . | . . . Recycling Unit Hacks 1 | . 1 . Report Inventory 1 | . 1 . Scanalyzer . | . . . Garrison Access Hacks . | . . . Unauthorized Hacks 2 | . 2 . Terminals 2 | . 2 . Botnet 2 | . 2 . Fabricators . | . . . Repair Stations . | . . . Recycling Units . | . . . Scanalyzers . | . . . Garrison Access . | . . . Data Cores Recovered . | . . . Used . | . . . Hacking Detections 2 | . 2 . Full Trace Events . | . . . Feedback Events . | . . . Feedback Blocked . | . . . Robot Schematics Acquired . | . . . Robots Built . | . . . Matter . | . . . Time . | . . . Total Robot Build Rating . | . . . Part Schematics Acquired . | . . . Parts Built . | . . . Matter . | . . . Time . | . . . Total Part Build Rating . | . . . Parts Repaired . | . . . Time . | . . . Parts Recycled . | . . . Recycled Matter . | . . . Retrieved Matter . | . . . Retrieved Components . | . . . Parts Scanalyzed . | . . . Part Schematics Acquired . | . . . Parts Damaged . | . . . Bothacking | -11 -10 -10 ------------ Run | Scr Mat Min Used RIF Installer . | . . . Robots Hacked . | . . . Non-combat . | . . . Combat . | . . . Robot Hacks Applied . | . . . Relay Couplers Released . | . . . Robots Rewired . | . . . Allies Hacked . | . . . Hacks Repelled . | . . . Allies | -11 -10 -10 -------- Run | Scr Mat Min Total Allies . | . . . Largest Group . | . . . Highest-Rated Group . | . . . Highest-Rated Ally . | . . . Total Orders . | . . . Ally Attacks . | . . . Total Damage . | . . . Kills . | . . . Allies Corrupted . | . . . Allies Melted . | . . . Intel | -11 -10 -10 ------- Run | Scr Mat Min Robot Analysis Total . | . . . Derelict Logs Recovered 1 | . . 1 Drone Launches . | . . . Drone Recoveries . | . . . Exploration | -11 -10 -10 ------------- Run | Scr Mat Min Turns Passed 592 | 57 146 389 Spaces Moved 425 | 54 127 244 Core 5 | 5 . . Treads 10 | . . 10 Legs 4 | . . 4 Wheels 406 | 49 127 230 Hover . | . . . Flight . | . . . Fastest Speed 50 | 50 90 80 Average Speed 90 | 83 90 91 Slowest Speed 160 | 90 90 160 Overloaded Moves . | . . . Propulsion Burnouts . | . . . Robots Hopped . | . . . Cave-ins Triggered . | . . . Exploration Rate (%) 25 | 3 25 49 Regions Visited 2 Branch Regions 1 Pre-discovered Areas 1 | . . 1 Known Exits Taken . | . . . Unknown Exits Taken 2 | 1 1 . Scrap Searched . | . . . Spaces Dug . | . . . Terrain Destroyed 4 | . 2 2 Melee . | . . . Projectile 2 | . . 2 AOE 2 | . 2 . Terrain Rammed . | . . . Walls Destroyed . | . . . Machines Disabled . | . . . Actions | -11 -10 -10 --------- Run | Scr Mat Min Total 551 | 62 144 345 Wait 48 | . 5 43 Move 423 | 53 126 244 Hop . | . . . Pick Up 5 | 3 2 . Fast Attach 15 | 6 1 8 Attach 5 | . 1 4 Detach 5 | . 1 4 Swap 2 | . . 2 Drop 1 | . . 1 Fire 43 | . 7 36 Melee 3 | . . 3 Ram 1 | . 1 . Kick . | . . . Crush . | . . . Escape Stasis . | . . . Rewire . | . . . Trap . | . . . Miscellaneous . | . . . Route ------- -11/Scrapyard -10/Materials -10/Mines (discovered 1 exit: [*Mat]) History --------- Turn | Location | Event 17 | -11/Scrapyard | Discovered new exit (range 15) 58 | -11/Scrapyard | Entered Materials 197 | -10/Materials | Discovered new exit (range 9) 204 | -10/Materials | Entered Mines 232 | -10/Mines | Discovered new exit (range 10) 309 | -10/Mines | Build established: Mutant 346 | -10/Mines | Learned location of Storage (-9) 375 | -10/Mines | Assembled infested the area 380 | -10/Mines | Assisted by a Guerilla fighting off Assembled 439 | -10/Mines | Core integrity fell below 50% 480 | -10/Mines | Core integrity fell below 20% 506 | -10/Mines | Lost 8 parts (2p2n4w) 593 | -10/Mines | Destroyed by G-47 Trooper with Particle Gun Last Messages --------------- 00450_ Acquired Flexi-carbon Leg. 00457_ EM Pulse Gun destroyed. 00473_ Lgt. Ion Engine destroyed. 00475_ Sml. Laser destroyed. 00484_ as-83446 destroyed. 00487_ Acquired 11 matter. 00492_ as-41019 destroyed. 00504_ Acquired Wheel. 00505_ Acquired 46 matter. 00507_ Acquired Targeting Computer. 00509_ U-05 Engineer lays Concrete. 00509_ Acquired 65 matter. 00535_ Acquired Bore Cannon. 00546_ U-05 Engineer builds a Wall. 00561_ Acquired 4 matter. 00562_ Acquired 6 matter. 00579_ K-01 Serf collects debris. 00586_ HV Slug penetrates Wall. 00592_ HV Slug penetrates G-47 Trooper. 00592_ G-47 Trooper knocked back. Map ----- +----------------------------------------------------+ | ##?????????????????????????????????????????????? | | #?????????????????????????????????????????????? | | #???????#####?????????????????????????????????? | | #????????# #?????????????????????????????????? | | ##?####???# ###???????????????????????????????? | | #### ##??# ????????????????????????????????? | | ## #?## #?????????????????????????????????? | | #?# ##????#?????#?????????????????????? | | %= #### % ####!### #?????????????????????? | | ### % #????????????????????? | | = #????????????????????? | | ### ! #???????????????????? | | #####% #??? ????????????????????? | | ##???## ##?????## ## ????????????????????? | | ##?????## ##??????? ???????????????????????? | | % ###??????##% #??????? ???????????????????????? | | ###???????## #???????t???????????????????????? | | ??????????# ##?????#g#??????????????????????? | | ??????????# #?????# #??????????????????????? | | #?????????## #?????# #??????????????????????? | | ##?????????# = ##?????# #??????????????????????? | | ######????##=*%##??????# #??????????????????????? | | #?######%%#???????# #??????????????????????? | | ##### #?# = %*%#???????# #??????????????????????? | | #???# ###]####=%###?????# #??????????????????????? | | ##??# %%#?##= | ##?####@####### #??????????????? | | #??#####!### #?# #??????????????? | | #??????#%## = ### #??????????????? | | #??????#!##%! %[ %###########??????????????? | | #??????# ###%* = =#????????????????????????? | | #??????#=##### #######????????????????????????? | | #??????# ### #??????????????????????????????? | | ##????###%## #?# #??????????????????????????????? | | #?????# #??#? ??????????????????????????????? | | ??????# ###??? ??????????????????????????????? | | ??????# #????### ##?????????????????????????????? | | ??????# #??????# #??????????????????????????????? | | ??????# #??????# #??????????????????????????????? | | ??????# #?????? #??????????????????????????????? | | ###???# #??????# ???????????????????????????????? | | #???# #??????# ???????????????????????????????? | | #???# #??????# ???????????????????????????????? | | " #???# #????????????????????????????????????????? | | " #???# #????????????????????????????????????????? | | " ##### #????????????????????????????????????????? | | #????????????????????????????????????????? | | #######????????????????????????????????????????? | | ##??????????????????????????????????????????????? | | ####????????????????????????????????????????????? | | #????????????????????????????????????????????? | +----------------------------------------------------+ Best States ------------- Heat Dissipation 25 Energy Generation 14 Energy Capacity 650 Matter Stores 300 Matter Capacity 300 Sight Range 16 Terrain Scan Density 10 Evasion (%) 44 Targeting Accuracy 5 Recoil Reduction 1 Item Schematics ----------------- None Robot Schematics ------------------ None Fabricated ------------ Nothing Alien Tech Used ----------------- None Achievements -------------- None Challenges ------------ None Game ------ Seed MyomerProcessingClaws Manual? 0 Play Time 00:08:27 Cumulative 38.7 hours Start 2021.10.23 @ 16:25:53 End 2021.10.23 @ 16:34:18 Sessions 1 Manual Loads 0 Difficulty Rogue Special Mode None Game No. 42 Rogue 42 Adventurer 0 Explorer 0 Win Type - Total 0 Types 0/0/0/0/0/0/0/0/0 Lore% 26 Gallery% 36 Achievement% 27 Wizard Run 0 Options --------- ASCII 0 Keyboard 1 Movement Numpad Keybinds 0 Fullscreen 2 Font 36/X11 Map View 76x50 Tactical HUD 1 Map Filters NONE Filters NONE Steam 1 RUN: 71f76260-6486-4b4d-a738-6bbc0578227d